Workbook

Sheet Feed sieve instructions
B1: Feed sieve instructions
B2: 1- Remove the sieve lid and insert the upright lid into the slot in the middle of the >3mm compartment. 2- Sample the feed correctly and fill the left compartment with feed.
B3: 3-Remove the lid and close the sieve by repositioning the lid in the slot. 4-Position the HUBBARD sieve upright (compartment > 3mm at the top) and shake for 60 seconds alternating from left to right and up and down.
B4: 6-Read the results and note the quantity of feed in each compartment using the graduated scale located to the left of each compartment. 7-Enter the results in the Data tab "Enter your data" of this Excel file. 8-Remove the lid and empty the feed from the sieve. Clean the sieves with a brush. 9-To have a good analysis of the feed sample, repeat the procedure for the same feed at least 5 times.
B12: www.hubbardbreeders.com

Sheet Enter your data
E1: Physical Quality Record Sheet for Parent Stock
E4: Company | F4: Hubbard | I4: How to use this file?
E5: Date | F5: 2025-01-01 | I5: 1-Enter values in the green cells: It is important to fill in the feed type and the feed presentation in order to have a proper comparison with the Hubbard recommendations. 2-Interpretation / Legend: Results in line with Hubbard recommendations Results NOT in line with Hubbard recommendations
E6: Product | F6: PS EFFICIENCY PLUS
E7: Farm name | F7: Cocorico
E8: House N° | F8: 1
E9: Feed Mill | F9: Feed Plus
E10: Feed type | F10: Breeder I
E11: Feed presentation | F11: Mash
F13: Enter the values read on the feed sieve | L13: % of the sample
F14: >3mm | G14: 2-3mm | H14: 1-2mm | I14: <1mm | J14: Total | L14: >3mm | M14: 2-3mm | N14: 1-2mm | O14: <1mm | P14: Total
E15: Sub Sample 1 | F15: 10 | G15: 45 | H15: 35 | I15: 10 | J15: =IF(OR(F15="",G15="",H15="",I15=""),"",SUM(F15:I15)) -> 100 | L15: =IF(J15="","",F15/$J15) -> 0.1 | M15: =IF(J15="","",G15/$J15) -> 0.45 | N15: =IF(J15="","",H15/$J15) -> 0.35 | O15: =IF(J15="","",I15/$J15) -> 0.1 | P15: =IF(J15="","",J15/$J15) -> 1
E16: Sub Sample 2 | F16: 12.5 | G16: 42.5 | H16: 32.5 | I16: 15 | J16: =IF(OR(F16="",G16="",H16="",I16=""),"",SUM(F16:I16)) -> 102.5 | L16: =IF(J16="","",F16/$J16) -> 0.1219512195 | M16: =IF(J16="","",G16/$J16) -> 0.4146341463 | N16: =IF(J16="","",H16/$J16) -> 0.3170731707 | O16: =IF(J16="","",I16/$J16) -> 0.1463414634 | P16: =IF(J16="","",J16/$J16) -> 1
E17: Sub Sample 3 | F17: 15 | G17: 40 | H17: 30 | I17: 15 | J17: 100 | L17: =IF(J17="","",F17/$J17) -> 0.15 | M17: 0.4 | N17: 0.3 | O17: 0.15 | P17: 1
E18: Sub Sample 4 | F18: 17.5 | G18: 37.5 | H18: 27.5 | I18: 12.5 | J18: 95 | L18: 0.1842105263 | M18: =IF(J18="","",G18/$J18) -> 0.3947368421 | N18: 0.2894736842 | O18: 0.1315789474 | P18: 1
E19: Sub Sample 5 | F19: 20 | G19: 35 | H19: 25 | I19: 15 | J19: =IF(OR(F19="",G19="",H19="",I19=""),"",SUM(F19:I19)) -> 95 | L19: =IF(J19="","",F19/$J19) -> 0.2105263158 | M19: =IF(J19="","",G19/$J19) -> 0.3684210526 | N19: 0.2631578947 | O19: 0.1578947368 | P19: 1
E20: Average | F20: =IF($F$15>0.001,AVERAGE(F15:F19),"") -> 15 | G20: =IF($F$15>0.001,AVERAGE(G15:G19),"") -> 40 | H20: =IF($F$15>0.001,AVERAGE(H15:H19),"") -> 30 | I20: =IF($F$15>0.001,AVERAGE(I15:I19),"") -> 13.5 | J20: =IF($F$15>0.001,AVERAGE(J15:J19),"") -> 98.5 | L20: =IF($F$15>0.001,AVERAGE(L15:L19),"") -> 0.1533376123 | M20: =IF($F$15>0.001,AVERAGE(M15:M19),"") -> 0.4055584082 | N20: =IF($F$15>0.001,AVERAGE(N15:N19),"") -> 0.3039409499 | O20: =IF($F$15>0.001,AVERAGE(O15:O19),"") -> 0.1371630295 | P20: =IF($F$15>0.001,AVERAGE(P15:P19),"") -> 1
E21: Hubbard recommendation | F21: =IF(L21="","",L21*100) -> 15 | G21: =IF(M21="","",M21*100) -> 40 | H21: =IF(N21="","",N21*100) -> 30 | I21: =IF(O21="","",O21*100) -> 15 | J21: =IF(P21="","",P21*100) -> 100 | L21: =IF(VLOOKUP($F$11&$F$10&$L$14,Recommandations!A2:E97,5)="N/A","",VLOOKUP($F$11&$F$10&$L$14,Recommandations!A2:E97,5)) -> 0.15 | M21: =IF(VLOOKUP($F$11&$F$10&$M$14,Recommandations!$A$2:$E$97,5)="N/A","",VLOOKUP($F$11&$F$10&$M$14,Recommandations!$A$2:$E$97,5)) -> 0.4 | N21: =IF(VLOOKUP($F$11&$F$10&$N$14,Recommandations!$A$2:$E$97,5)="N/A","",VLOOKUP($F$11&$F$10&$N$14,Recommandations!$A$2:$E$97,5)) -> 0.3 | O21: =IF(VLOOKUP($F$11&$F$10&$O$14,Recommandations!$A$2:$E$97,5)="N/A","",VLOOKUP($F$11&$F$10&$O$14,Recommandations!$A$2:$E$97,5)) -> 0.15 | P21: =IF(SUM(L21:O21)=0,"",SUM(L21:O21)) -> 1
E43: Please consult your local Hubbard Technical Manager for more speciﬁc details.
E44: www.hubbardbreeders.com
E46: The performance data contained in this document was obtained from results and experience from our own research flocks and flocks of our customers. In no way does the data contained in this document constitute a warranty or guarantee of the same performance under different conditions of nutrition, density or physical or biological environment. In particular (but without limitation of foregoing) we do not grant any warranties regarding the fitness for purpose, performance, use, nature or quality of the flocks, nor any warranty regarding compliance with local legislation regarding health, welfare, or other aspects of animal production. Hubbard makes no representation as to the accuracy or completeness of the information contained in this document.

Sheet Recommandations (hidden)
A1: ID | B1: Form | C1: Particle size | D1: Feed type | E1: Recommandation | F1: Quality of feed presentation
A2: =B2&D2&C2 -> CrumbBreeder I<1mm | B2: Crumb | C2: <1mm | D2: Breeder I | E2: 0.1 | F2: Good | H2: Crumb | I2: Pre-Starter | J2: PS Female EFFICIENCY PLUS
A3: CrumbBreeder I>3mm | B3: Crumb | C3: >3mm | D3: Breeder I | E3: 0.5 | F3: Good | H3: Mash | I3: Starter | J3: PS Premium Female (JA57; JA57Ki; JA87; REDBRO; Redbro Mini; P6N)
A4: CrumbBreeder I1-2mm | B4: Crumb | C4: 1-2mm | D4: Breeder I | E4: 0.1 | F4: Good | H4: Pellet | I4: Grower | J4: PS Males (M77/M99)
A5: CrumbBreeder I2-3mm | B5: Crumb | C5: 2-3mm | D5: Breeder I | E5: 0.3 | F5: Good | I5: Transition | J5: PS Males (Intermediate growth males, slow growth males)
A6: CrumbBreeder II<1mm | B6: Crumb | C6: <1mm | D6: Breeder II | E6: 0.1 | F6: Good | I6: Onset of lay
A7: CrumbBreeder II>3mm | B7: Crumb | C7: >3mm | D7: Breeder II | E7: 0.5 | F7: Good | I7: Breeder I
A8: CrumbBreeder II1-2mm | B8: Crumb | C8: 1-2mm | D8: Breeder II | E8: 0.1 | F8: Good | I8: Breeder II
A9: CrumbBreeder II2-3mm | B9: Crumb | C9: 2-3mm | D9: Breeder II | E9: 0.3 | F9: Good | I9: Breeder III
A10: CrumbBreeder III<1mm | B10: Crumb | C10: <1mm | D10: Breeder III | E10: 0.1 | F10: Good
A11: CrumbBreeder III>3mm | B11: Crumb | C11: >3mm | D11: Breeder III | E11: 0.5 | F11: Good
A12: CrumbBreeder III1-2mm | B12: Crumb | C12: 1-2mm | D12: Breeder III | E12: 0.1 | F12: Good
A13: CrumbBreeder III2-3mm | B13: Crumb | C13: 2-3mm | D13: Breeder III | E13: 0.3 | F13: Good
A14: CrumbGrower<1mm | B14: Crumb | C14: <1mm | D14: Grower | E14: 0.1 | F14: Good
A15: CrumbGrower>3mm | B15: Crumb | C15: >3mm | D15: Grower | E15: 0.5 | F15: Good
A16: CrumbGrower1-2mm | B16: Crumb | C16: 1-2mm | D16: Grower | E16: 0.1 | F16: Good
A17: CrumbGrower2-3mm | B17: Crumb | C17: 2-3mm | D17: Grower | E17: 0.3 | F17: Good
A18: CrumbOnset of lay<1mm | B18: Crumb | C18: <1mm | D18: Onset of lay | E18: 0.1 | F18: Good
A19: CrumbOnset of lay>3mm | B19: Crumb | C19: >3mm | D19: Onset of lay | E19: 0.5 | F19: Good
A20: CrumbOnset of lay1-2mm | B20: Crumb | C20: 1-2mm | D20: Onset of lay | E20: 0.1 | F20: Good
A21: CrumbOnset of lay2-3mm | B21: Crumb | C21: 2-3mm | D21: Onset of lay | E21: 0.3 | F21: Good
A22: CrumbPre-Starter<1mm | B22: Crumb | C22: <1mm | D22: Pre-Starter | E22: 0.05 | F22: Good
A23: CrumbPre-Starter>3mm | B23: Crumb | C23: >3mm | D23: Pre-Starter | E23: 0 | F23: Good
A24: CrumbPre-Starter1-2mm | B24: Crumb | C24: 1-2mm | D24: Pre-Starter | E24: 0.55 | F24: Good
A25: CrumbPre-Starter2-3mm | B25: Crumb | C25: 2-3mm | D25: Pre-Starter | E25: 0.4 | F25: Good
A26: CrumbStarter<1mm | B26: Crumb | C26: <1mm | D26: Starter | E26: 0.05 | F26: Good
A27: CrumbStarter>3mm | B27: Crumb | C27: >3mm | D27: Starter | E27: 0 | F27: Good
A28: CrumbStarter1-2mm | B28: Crumb | C28: 1-2mm | D28: Starter | E28: 0.55 | F28: Good
A29: CrumbStarter2-3mm | B29: Crumb | C29: 2-3mm | D29: Starter | E29: 0.4 | F29: Good
A30: CrumbTransition<1mm | B30: Crumb | C30: <1mm | D30: Transition | E30: 0.1 | F30: Good
A31: CrumbTransition>3mm | B31: Crumb | C31: >3mm | D31: Transition | E31: 0.5 | F31: Good
A32: CrumbTransition1-2mm | B32: Crumb | C32: 1-2mm | D32: Transition | E32: 0.1 | F32: Good
A33: CrumbTransition2-3mm | B33: Crumb | C33: 2-3mm | D33: Transition | E33: 0.3 | F33: Good
A34: =B34&D34&C34 -> MashBreeder I<1mm | B34: Mash | C34: <1mm | D34: Breeder I | E34: 0.15 | F34: Good
A35: MashBreeder I>3mm | B35: Mash | C35: >3mm | D35: Breeder I | E35: 0.15 | F35: Good
A36: MashBreeder I1-2mm | B36: Mash | C36: 1-2mm | D36: Breeder I | E36: 0.3 | F36: Good
A37: MashBreeder I2-3mm | B37: Mash | C37: 2-3mm | D37: Breeder I | E37: 0.4 | F37: Good
A38: MashBreeder II<1mm | B38: Mash | C38: <1mm | D38: Breeder II | E38: 0.15 | F38: Good
A39: MashBreeder II>3mm | B39: Mash | C39: >3mm | D39: Breeder II | E39: 0.15 | F39: Good
A40: MashBreeder II1-2mm | B40: Mash | C40: 1-2mm | D40: Breeder II | E40: 0.3 | F40: Good
A41: MashBreeder II2-3mm | B41: Mash | C41: 2-3mm | D41: Breeder II | E41: 0.4 | F41: Good
A42: MashBreeder III<1mm | B42: Mash | C42: <1mm | D42: Breeder III | E42: 0.15 | F42: Good
A43: MashBreeder III>3mm | B43: Mash | C43: >3mm | D43: Breeder III | E43: 0.15 | F43: Good
A44: MashBreeder III1-2mm | B44: Mash | C44: 1-2mm | D44: Breeder III | E44: 0.3 | F44: Good
A45: MashBreeder III2-3mm | B45: Mash | C45: 2-3mm | D45: Breeder III | E45: 0.4 | F45: Good
A46: MashGrower<1mm | B46: Mash | C46: <1mm | D46: Grower | E46: 0.2 | F46: Good
A47: MashGrower>3mm | B47: Mash | C47: >3mm | D47: Grower | E47: 0.1 | F47: Good
A48: MashGrower1-2mm | B48: Mash | C48: 1-2mm | D48: Grower | E48: 0.35 | F48: Good
A49: MashGrower2-3mm | B49: Mash | C49: 2-3mm | D49: Grower | E49: 0.35 | F49: Good
A50: MashOnset of lay<1mm | B50: Mash | C50: <1mm | D50: Onset of lay | E50: 0.15 | F50: Good
A51: MashOnset of lay>3mm | B51: Mash | C51: >3mm | D51: Onset of lay | E51: 0.15 | F51: Good
A52: MashOnset of lay1-2mm | B52: Mash | C52: 1-2mm | D52: Onset of lay | E52: 0.3 | F52: Good
A53: MashOnset of lay2-3mm | B53: Mash | C53: 2-3mm | D53: Onset of lay | E53: 0.4 | F53: Good
A54: MashPre-Starter<1mm | B54: Mash | C54: <1mm | D54: Pre-Starter | E54: 0.2 | F54: Good
A55: MashPre-Starter>3mm | B55: Mash | C55: >3mm | D55: Pre-Starter | E55: 0.05 | F55: Good
A56: MashPre-Starter1-2mm | B56: Mash | C56: 1-2mm | D56: Pre-Starter | E56: 0.5 | F56: Good
A57: MashPre-Starter2-3mm | B57: Mash | C57: 2-3mm | D57: Pre-Starter | E57: 0.25 | F57: Good
A58: MashStarter<1mm | B58: Mash | C58: <1mm | D58: Starter | E58: 0.2 | F58: Good
A59: MashStarter>3mm | B59: Mash | C59: >3mm | D59: Starter | E59: 0.05 | F59: Good
A60: MashStarter1-2mm | B60: Mash | C60: 1-2mm | D60: Starter | E60: 0.5 | F60: Good
A61: MashStarter2-3mm | B61: Mash | C61: 2-3mm | D61: Starter | E61: 0.25 | F61: Good
A62: MashTransition<1mm | B62: Mash | C62: <1mm | D62: Transition | E62: 0.2 | F62: Good
A63: MashTransition>3mm | B63: Mash | C63: >3mm | D63: Transition | E63: 0.1 | F63: Good
A64: MashTransition1-2mm | B64: Mash | C64: 1-2mm | D64: Transition | E64: 0.35 | F64: Good
A65: MashTransition2-3mm | B65: Mash | C65: 2-3mm | D65: Transition | E65: 0.35 | F65: Good
A66: =B66&D66&C66 -> PelletBreeder I<1mm | B66: Pellet | C66: <1mm | D66: Breeder I | E66: 0.1 | F66: Good
A67: PelletBreeder I>3mm | B67: Pellet | C67: >3mm | D67: Breeder I | E67: 0.7 | F67: Good
A68: PelletBreeder I1-2mm | B68: Pellet | C68: 1-2mm | D68: Breeder I | E68: 0.1 | F68: Good
A69: PelletBreeder I2-3mm | B69: Pellet | C69: 2-3mm | D69: Breeder I | E69: 0.1 | F69: Good
A70: PelletBreeder II<1mm | B70: Pellet | C70: <1mm | D70: Breeder II | E70: 0.1 | F70: Good
A71: PelletBreeder II>3mm | B71: Pellet | C71: >3mm | D71: Breeder II | E71: 0.7 | F71: Good
A72: PelletBreeder II1-2mm | B72: Pellet | C72: 1-2mm | D72: Breeder II | E72: 0.1 | F72: Good
A73: PelletBreeder II2-3mm | B73: Pellet | C73: 2-3mm | D73: Breeder II | E73: 0.1 | F73: Good
A74: PelletBreeder III<1mm | B74: Pellet | C74: <1mm | D74: Breeder III | E74: 0.1 | F74: Good
A75: PelletBreeder III>3mm | B75: Pellet | C75: >3mm | D75: Breeder III | E75: 0.7 | F75: Good
A76: PelletBreeder III1-2mm | B76: Pellet | C76: 1-2mm | D76: Breeder III | E76: 0.1 | F76: Good
A77: PelletBreeder III2-3mm | B77: Pellet | C77: 2-3mm | D77: Breeder III | E77: 0.1 | F77: Good
A78: PelletGrower<1mm | B78: Pellet | C78: <1mm | D78: Grower | E78: 0.1 | F78: Good
A79: PelletGrower>3mm | B79: Pellet | C79: >3mm | D79: Grower | E79: 0.7 | F79: Good
A80: PelletGrower1-2mm | B80: Pellet | C80: 1-2mm | D80: Grower | E80: 0.1 | F80: Good
A81: PelletGrower2-3mm | B81: Pellet | C81: 2-3mm | D81: Grower | E81: 0.1 | F81: Good
A82: PelletOnset of lay<1mm | B82: Pellet | C82: <1mm | D82: Onset of lay | E82: 0.1 | F82: Good
A83: PelletOnset of lay>3mm | B83: Pellet | C83: >3mm | D83: Onset of lay | E83: 0.7 | F83: Good
A84: PelletOnset of lay1-2mm | B84: Pellet | C84: 1-2mm | D84: Onset of lay | E84: 0.1 | F84: Good
A85: PelletOnset of lay2-3mm | B85: Pellet | C85: 2-3mm | D85: Onset of lay | E85: 0.1 | F85: Good
A86: PelletPre-Starter<1mm | B86: Pellet | C86: <1mm | D86: Pre-Starter | E86: N/A | F86: Good
A87: PelletPre-Starter>3mm | B87: Pellet | C87: >3mm | D87: Pre-Starter | E87: N/A | F87: Good
A88: PelletPre-Starter1-2mm | B88: Pellet | C88: 1-2mm | D88: Pre-Starter | E88: N/A | F88: Good
A89: PelletPre-Starter2-3mm | B89: Pellet | C89: 2-3mm | D89: Pre-Starter | E89: N/A | F89: Good
A90: PelletStarter<1mm | B90: Pellet | C90: <1mm | D90: Starter | E90: N/A | F90: Good
A91: PelletStarter>3mm | B91: Pellet | C91: >3mm | D91: Starter | E91: N/A | F91: Good
A92: PelletStarter1-2mm | B92: Pellet | C92: 1-2mm | D92: Starter | E92: N/A | F92: Good
A93: PelletStarter2-3mm | B93: Pellet | C93: 2-3mm | D93: Starter | E93: N/A | F93: Good
A94: PelletTransition<1mm | B94: Pellet | C94: <1mm | D94: Transition | E94: 0.1 | F94: Good
A95: PelletTransition>3mm | B95: Pellet | C95: >3mm | D95: Transition | E95: 0.7 | F95: Good
A96: PelletTransition1-2mm | B96: Pellet | C96: 1-2mm | D96: Transition | E96: 0.1 | F96: Good
A97: PelletTransition2-3mm | B97: Pellet | C97: 2-3mm | D97: Transition | E97: 0.1 | F97: Good
